[Event "Croatian 1A League 2022"]
[Site "Porec"]
[Date "2022.09.29"]
[Round "6.27"]
[White "Krsnik Cohar, Ivan Vihor"]
[Black "Saric, Ante"]
[Result "0-1"]
[ECO "B20"]
[WhiteElo "2296"]
[BlackElo "2510"]
[Annotator "TA"]
[PlyCount "72"]
[EventDate "2022.09.24"]
[EventType "team-tourn"]
[EventCountry "CRO"]
[SourceTitle "playchess.com"]
[Source "ChessBase"]
[SourceQuality "1"]
[TimeControl "40/5400+30:1800+30"]

{[%evp 10,72,-27,-23,-22,-12,-7,-29,-28,-53,-52,-59,-49,-45,-35,-50,-56,-56,-60,-87,-85,-80,-84,-105,-107,-147,-141,-206,-214,-266,-234,-314,-287,-336,-307,-470,-460,-425,-212,-504,-504,-476,-487,-479,-439,-447,-364,-357,-351,-526,-504,-630,-576,-633,-625,-635,-637,-605,-532,-721,-716,-966,-946,-1243,-1185]} 1. e4 {[%emt 0:02:23]} c5 {[%emt 0:00:07]} 2. g3 {[%emt 0:00:05]} d5 {[%emt 0:00:04]} 3. exd5 {[%emt 0:00:05]} Qxd5 {[%emt 0:00:06]} 4. Nf3 {[%emt 0:00:06]} Nc6 {[%emt 0:00:08]} 5. Bg2 {[%emt 0:00:45]} Qe6+ {[%emt 0:01:13]} 6. Kf1 {[%emt 0:00:07]} g6 {[%emt 0:00:48] B20: Sicilian: Unusual White 2nd moves.} 7. d3 {[%emt 0:10:53]} Bg7 {[%emt 0:01:27]} 8. Nc3 {[%emt 0:00:07]} Nf6 {[%emt 0:04:00] Black has an edge.} 9. Be3 {[%emt 0:03:13]} b6 $1 {[%emt 0:06:42]} 10. Qd2 {[%emt 0:07:39]} Bb7 {[%emt 0:02:45]} 11. Re1 {[%emt 0:03:06][%cal Oe3c5]} Qd7 {[%emt 0:07:58]} 12. Bh6 {[%emt 0:11:02]} O-O {[%emt 0:02:28]} 13. Bxg7 {[%emt 0:02:08]} Kxg7 {[%emt 0:00:11] [#]} 14. Ne4 $146 {[%emt 0:04:57] Black converts the advantage convincingly.} ({Predecessor:} 14. Qf4 Nd4 15. Nxd4 Bxg2+ 16. Kxg2 cxd4 17. Ne4 Nd5 18. Qd2 e5 19. c4 dxc3 20. bxc3 {1-0 (51) Munoz Pantoja,M (2476)-Wittmann,W (2302) Budapest 2010}) 14... Nxe4 {[%emt 0:06:34]} 15. Rxe4 {[%emt 0:00:07]} f6 {[%emt 0:08:11] Against Ne5} 16. Rh4 {[%emt 0:04:47] Black must now prevent Qh6+.} Rf7 {[%emt 0:12:33]} 17. Qh6+ {[%emt 0:18:08]} Kg8 {[%emt 0:00:20]} 18. Qe3 {[%emt 0:00:03] [#]} (18. Qc1 $17) 18... e5 $1 $19 {[%emt 0:01:44][%cal Be7e5,Be5e4][%mdl 32]} 19. Ne1 {[%emt 0:03:37]} Rd8 {[%emt 0:03:27]} 20. Bxc6 {[%emt 0:06:21]} Bxc6 {[%emt 0:02:17]} ({Don't go for} 20... Qxc6 $2 21. f3 $19) 21. f3 {[%emt 0:00:05]} f5 {[%emt 0:00:34] Threatens to win with ...e4.} 22. Kf2 {[%emt 0:03:43]} (22. Kg2 {was the only defense.}) 22... e4 {[%emt 0:03:43] ...exf3 is the strong threat.} 23. Rf1 {[%emt 0:00:56]} Bb5 {[%emt 0:02:40]} (23... Re8 $142 {aiming for ...exf3.} 24. Qc1 exf3 25. Nxf3 Bxf3 26. Kxf3 Rfe7) 24. dxe4 {[%emt 0:07:52]} (24. a4 {was worth a try.} Ba6 25. Kg1) 24... Qd2+ {[%emt 0:02:46]} 25. Qxd2 {[%emt 0:00:05]} Rxd2+ {[%emt 0:00:05]} 26. Kg1 {[%emt 0:04:12]} Bxf1 {[%emt 0:01:09]} 27. Kxf1 {[%emt 0:00:16]} fxe4 {[%emt 0:02:59]} 28. Rxe4 {[%emt 0:00:07]} Rxh2 {[%emt 0:00:17][%mdl 4096] Endgame KRR-KRN} 29. b4 {[%emt 0:00:32]} (29. Kg1 $142 Rd2 30. Kf1) 29... cxb4 {[%emt 0:00:41] Black is clearly winning.} 30. Kg1 {[%emt 0:02:40]} Rd2 {[%emt 0:00:21]} 31. Rxb4 {[%emt 0:00:04]} Re7 {[%emt 0:00:18][%cal Re7e1] [#]} 32. Rb1 {[%emt 0:00:12]} Re3 {[%emt 0:01:50]} 33. Kf1 {[%emt 0:00:16]} h5 {[%emt 0:00:25] Hoping for ...g5.} 34. a4 {[%emt 0:00:12]} Kf7 {[%emt 0:01:13]} 35. a5 {[%emt 0:00:04]} bxa5 {[%emt 0:00:16][%cal Bb6a5,Ba5a4][%mdl 32]} 36. c4 {[%emt 0:00:06]} a4 {[%emt 0:01:00] Weighted Error Value: White=0.70/Black=0.14 (very precise)} 0-1

[Event "Croatian 1A League 2022"]
[Site "Porec"]
[Date "2022.09.29"]
[Round "6.28"]
[White "Plenca, Julijan"]
[Black "Franic, Milan"]
[Result "1-0"]
[ECO "B42"]
[WhiteElo "2447"]
[BlackElo "2365"]
[Annotator "TA"]
[PlyCount "79"]
[EventDate "2022.09.24"]
[EventType "team-tourn"]
[EventCountry "CRO"]
[SourceTitle "playchess.com"]
[Source "ChessBase"]
[SourceQuality "1"]
[TimeControl "40/5400+30:1800+30"]

{[%evp 11,79,31,42,35,55,25,28,24,118,83,100,71,79,86,99,69,74,42,49,24,62,51,83,1,20,9,100,69,62,0,0,0,9,0,18,19,163,156,133,0,0,-29,0,0,141,143,197,191,190,191,194,188,245,239,320,172,716,700,677,639,629,626,587,547,541,521,4610,643,29972,29973]} 1. e4 {[%emt 0:00:02]} c5 {[%emt 0:04:39]} 2. Nf3 {[%emt 0:00:18]} e6 {[%emt 0:00:17]} 3. d4 {[%emt 0:02:38]} cxd4 {[%emt 0:00:05]} 4. Nxd4 {[%emt 0:00:05]} a6 {[%emt 0:00:09]} 5. Bd3 {[%emt 0:00:23]} Ne7 {[%emt 0:02:57]} 6. O-O {[%emt 0:02:13]} Nbc6 {[%emt 0:00:04]} 7. c3 {[%emt 0:02:42] B42: Sicilian: Kan Variation: 5 Bd3.} g6 {[%emt 0:09:38]} 8. Bg5 {[%emt 0:10:12]} Bg7 {[%emt 0:00:20]} 9. Nxc6 {[%emt 0:01:19] [#] White has an edge.} dxc6 $146 {[%emt 0:00:35]} (9... bxc6 $11 10. Nd2 O-O) ({Predecessor:} 9... bxc6 10. Qe2 d6 11. Nd2 O-O 12. Nf3 h6 13. Be3 e5 14. Rad1 Bg4 15. h3 Bxf3 16. Qxf3 {½-½ (41) Szostko,J (2295)-Balasubramaniam,H (2219) Warsaw 2018}) 10. Qe2 {[%emt 0:00:47]} O-O {[%emt 0:00:21]} 11. Nd2 {[%emt 0:01:23]} Qc7 {[%emt 0:08:24]} 12. a4 {[%emt 0:04:29]} b6 {[%emt 0:03:40]} 13. Nc4 {[%emt 0:01:47]} b5 {[%emt 0:02:37]} 14. Ne3 {[%emt 0:01:45][%cal Ra4b5]} Rb8 {[%emt 0:00:48]} 15. f4 {[%emt 0:08:28]} f6 {[%emt 0:10:52]} 16. Bh4 {[%emt 0:00:14]} Rf7 {[%emt 0:00:28]} 17. c4 {[%emt 0:02:17]} (17. axb5 $16 cxb5 18. f5) 17... bxa4 {[%emt 0:00:31]} (17... f5 $5 {[%cal Rf5e4]}) 18. c5 $36 {[%emt 0:03:11][%mdl 2048] White has good play.} (18. f5 {is interesting.} Qb6 19. Bg3 Rb7 20. c5) 18... Qa7 {[%emt 0:08:15]} (18... f5 $1 $11 {remains equal.}) 19. Bf2 {[%emt 0:02:44] White is more active.} f5 {[%emt 0:00:14] [#] Strongly threatening ...fxe4.} 20. Nc4 {[%emt 0:00:43]} (20. e5 $14) 20... fxe4 $11 {[%emt 0:00:54]} 21. Bxe4 {[%emt 0:03:47]} Nd5 {[%emt 0:01:28]} 22. g3 {[%emt 0:00:54]} Rb4 {[%emt 0:00:22]} 23. Qc2 {[%emt 0:04:30]} e5 {[%emt 0:24:10]} (23... a5 $11 {and Black has nothing to worry.}) 24. Nd6 $18 {[%emt 0:02:46]} Bh3 {[%emt 0:02:34]} 25. Nxf7 {[%emt 0:08:48]} (25. Rfe1 $16) 25... Qxf7 $11 {[%emt 0:01:32]} 26. Rxa4 {[%emt 0:03:46] Hoping for Re1.} exf4 {[%emt 0:01:15]} 27. Rb1 {[%emt 0:07:38]} fxg3 {[%emt 0:04:58]} (27... Ne3 $11 {keeps the balance.} 28. Bxe3 Rxa4 29. Qxa4 fxe3 30. Qxc6 (30. Qxa6 $2 Qf2+ 31. Kh1 e2 $19) 30... Qf2+ 31. Kh1 e2 32. Bd5+ Kh8 33. Qe8+ Bf8 34. Qe5+ Bg7 35. Qe8+ Bf8 36. Qe5+ Bg7 37. Qe8+) 28. hxg3 $16 {[%emt 0:00:06]} Rxe4 {[%emt 0:02:18]} (28... Qe6 $16 {was necessary.}) 29. Qxe4 $18 {[%emt 0:00:20] Black must now prevent Re1.} ({But not} 29. Rxe4 $6 Qf3 30. Re8+ Kf7 $16) 29... Bf5 {[%emt 0:00:04]} 30. Qe1 {[%emt 0:00:23]} Bxb1 {[%emt 0:00:51]} 31. Qxb1 {[%emt 0:00:08]} Qf3 {[%emt 0:00:14] [#]} (31... Qb7 {keeps fighting.}) 32. Qe1 $1 {[%emt 0:00:59]} ({Not} 32. Rxa6 Ne3 33. Ra8+ Kf7 34. Ra7+ Kg8 35. Bxe3 Qxe3+ 36. Kh1 Qf3+ 37. Kh2 Qe2+ 38. Kh3 Qh5+ 39. Kg2 Qe2+ 40. Kh3 Qh5+ 41. Kg2 Qe2+ 42. Kh3 $11) 32... Bxb2 {[%emt 0:03:38]} 33. Rxa6 {[%emt 0:02:19]} (33. Qe6+ $142 Kg7 34. Rxa6) 33... Nf6 $2 {[%emt 0:05:04]} (33... Nc7) 34. Qe6+ {[%emt 0:01:31]} Kg7 {[%emt 0:00:10]} 35. Qe7+ {[%emt 0:01:35]} Kh6 {[%emt 0:00:13][%cal Ob2d4]} 36. Qe3+ {[%emt 0:00:10]} Qxe3 {[%emt 0:00:40]} 37. Bxe3+ {[%emt 0:00:05]} Kh5 {[%emt 0:00:06]} 38. Rxc6 {[%emt 0:00:32] And now Rb6 would win.} Ne4 {[%emt 0:00:05]} 39. Rb6 {[%emt 0:00:46] c6 would kill now.} Be5 {[%emt 0:00:12]} 40. Re6 {[%emt 0:00:00] Weighted Error Value: White=0.31/Black=0.56} 1-0

[Event "Croatian 1A League 2022"]
[Site "Porec"]
[Date "2022.09.29"]
[Round "6.29"]
[White "Glavas, Dragan"]
[Black "Plenca, Jadranko"]
[Result "0-1"]
[ECO "E49"]
[WhiteElo "2249"]
[BlackElo "2412"]
[Annotator "TA"]
[PlyCount "52"]
[EventDate "2022.09.24"]
[EventType "team-tourn"]
[EventCountry "CRO"]
[SourceTitle "playchess.com"]
[Source "ChessBase"]
[SourceQuality "1"]
[TimeControl "40/5400+30:1800+30"]

{[%evp 19,52,0,33,25,37,-36,-51,-37,-21,-12,-5,-27,-37,-87,-75,-97,-79,-95,-87,-101,-77,-108,-100,-108,-99,-908,-905,-881,-878,-872,-863,-791,-739,-695,-546]} 1. d4 {[%emt 0:00:03]} Nf6 {[%emt 0:00:06]} 2. c4 {[%emt 0:00:21]} e6 {[%emt 0:00:06]} 3. Nc3 {[%emt 0:00:44]} Bb4 {[%emt 0:00:28]} 4. e3 {[%emt 0:01:50]} O-O {[%emt 0:01:28]} 5. Bd3 {[%emt 0:01:22]} d5 {[%emt 0:04:42]} 6. a3 {[%emt 0:02:53]} Bxc3+ {[%emt 0:02:08]} 7. bxc3 {[%emt 0:00:10]} c5 {[%emt 0:00:20]} 8. Ne2 {[%emt 0:01:02]} b6 {[%emt 0:01:02]} 9. cxd5 {[%emt 0:06:22]} exd5 {[%emt 0:00:32]} 10. O-O {[%emt 0:00:20]} Ba6 {[%emt 0:01:27]} 11. Bxa6 {[%emt 0:06:10] E49: Nimzo-Indian: Rubinstein: 5 Bd3 d5 6 a3 Bxc3+ 7 bxc3.} Nxa6 {[%emt 0:00:35] [#]} 12. dxc5 $146 {[%emt 0:00:23]} (12. Qd3 $14 c4 13. Qc2) ({Predecessor:} 12. Qd3 Qc8 13. f3 Re8 14. Ng3 h5 15. e4 h4 16. Nf5 dxe4 17. fxe4 Nxe4 18. Bh6 gxh6 19. Nxh6+ Kg7 20. Nf5+ Kf8 21. Qf3 {1-0 (31) Grischuk,A (2745)-Kravtsiv,M (2598) Chess.com INT 2022}) 12... Nxc5 $15 {[%emt 0:05:14]} 13. a4 {[%emt 0:05:52] Black is slightly better.} Rc8 {[%emt 0:05:31]} 14. Ba3 {[%emt 0:04:20]} Qd7 {[%emt 0:04:41]} 15. a5 {[%emt 0:02:49]} bxa5 {[%emt 0:01:46]} 16. Bxc5 {[%emt 0:01:19]} ({White should play} 16. Nc1 $15) 16... Rxc5 $17 {[%emt 0:00:05]} 17. Ra3 {[%emt 0:01:02]} Rfc8 {[%emt 0:03:30]} (17... Qc7 {feels hotter.} 18. Qa4 Ne4 19. Rb1 Rc8) 18. Qa1 {[%emt 0:01:36]} Qc7 {[%emt 0:05:06]} 19. h3 {[%emt 0:00:34]} Ne4 {[%emt 0:03:21]} 20. Rd1 {[%emt 0:01:08]} h6 {[%emt 0:03:52] Black is more active.} 21. Rd4 {[%emt 0:04:37][%cal Oc3c4]} Rb8 {[%emt 0:05:54]} 22. Rda4 $2 {[%emt 0:04:53][%mdl 8192]} (22. Rd1 $17) 22... Rcb5 $19 {[%emt 0:01:31] [#] And now ...Rb1+ would win. Black is clearly winning.} 23. Qe1 {[%emt 0:00:51]} Rb1 {[%emt 0:01:08][%cal Rb1e1]} 24. Nc1 {[%emt 0:00:07]} R8b2 {[%emt 0:02:10]} 25. Ra2 {[%emt 0:06:12]} Rxa2 {[%emt 0:01:53]} 26. Rxa2 {[%emt 0:00:17]} Qxc3 {[%emt 0:00:06] White did not feel at home in the position after the opening.  Weighted Error Value: White=0.54/Black=0.17 (very precise)} 0-1

[Event "Croatian 1A League 2022"]
[Site "Porec"]
[Date "2022.09.29"]
[Round "6.30"]
[White "Cotic, Borna"]
[Black "Rubil, Marko"]
[Result "1/2-1/2"]
[ECO "C47"]
[WhiteElo "2133"]
[BlackElo "2270"]
[Annotator "TA"]
[PlyCount "125"]
[EventDate "2022.09.24"]
[EventType "team-tourn"]
[EventCountry "CRO"]
[SourceTitle "playchess.com"]
[Source "ChessBase"]
[SourceQuality "1"]
[TimeControl "40/5400+30:1800+30"]

{[%evp 11,125,26,42,16,11,9,12,21,27,20,17,20,25,5,16,26,20,13,12,9,31,16,39,1,13,0,0,0,2,0,27,0,30,14,5,11,47,18,72,32,45,22,28,0,0,0,0,0,0,0,-6,-12,-12,-13,-12,-81,-77,-79,-91,-92,-92,-313,-29,-29,-29,-25,-23,-94,-81,-172,-29,-29,-29,-29,-20,-105,-104,-127,-158,-128,-138,-158,-158,-233,-231,-209,-178,-459,-479,-531,-451,-211,-202,-436,-364,-508,-508,-501,-497,-397,-289,-811,-793,-489,-489,-489,-489,-29980,-29981,-29979,0,-29962,-1114,-460,0,-1015]} 1. e4 {[%emt 0:00:01]} e5 {[%emt 0:03:51]} 2. Nf3 {[%emt 0:00:05][%cal Bg1f3,Bf3d4,Bd4f5][%mdl 32]} Nc6 {[%emt 0:00:05]} 3. Nc3 {[%emt 0:00:06]} Nf6 {[%emt 0:00:21]} 4. d4 {[%emt 0:00:04]} exd4 {[%emt 0:00:07]} 5. Nxd4 {[%emt 0:00:05]} Bc5 {[%emt 0:00:13]} 6. Be3 {[%emt 0:00:05]} Bb6 {[%emt 0:00:06]} 7. Nf5 {[%emt 0:00:08] Recently 7.Qd2 got a lot of attention. C47: Scotch Four Knights and Four Knights with 4 g3.} O-O {[%emt 0:00:46]} 8. Bxb6 {[%emt 0:00:10]} (8. Bd3 {looks sharper.} Ba5 9. O-O d6 10. Bg5) 8... axb6 {[%emt 0:00:01]} 9. Ne3 {[%emt 0:00:09] Prevents d5.} Re8 {[%emt 0:00:04]} 10. Bd3 {[%emt 0:00:43]} b5 {[%emt 0:00:33] [#]} 11. a3 $146 {[%emt 0:19:12]} ({Predecessor:} 11. Bxb5 Nxe4 12. Nxe4 Rxe4 13. Bd3 Rea4 14. c3 Qg5 15. O-O d6 16. Bc2 Rh4 17. g3 {1-0 (28) Mitura,V (2240)-Bobak,M Piestany 2005}) 11... b4 {[%emt 0:23:25]} 12. axb4 {[%emt 0:01:06]} Rxa1 {[%emt 0:00:08]} 13. Qxa1 {[%emt 0:00:05]} Nxb4 {[%emt 0:00:05]} 14. O-O {[%emt 0:26:44][%cal Bh1f1,Bf1a1,Ba1a6][%mdl 32]} d6 {[%emt 0:08:31]} 15. Qa4 {[%emt 0:06:41]} Nxd3 {[%emt 0:09:20]} 16. cxd3 {[%emt 0:00:19]} Bd7 {[%emt 0:00:17]} 17. Qc2 {[%emt 0:02:45]} c6 {[%emt 0:07:03]} 18. Qb3 {[%emt 0:04:22]} b5 {[%emt 0:09:32]} 19. Ra1 {[%emt 0:02:39]} Qb8 {[%emt 0:00:18]} 20. Qb4 {[%emt 0:10:31]} h5 {[%emt 0:13:22]} 21. Ra6 {[%emt 0:07:11]} Qc7 {[%emt 0:12:34]} 22. Qa5 {[%emt 0:01:17]} (22. h3 {feels hotter.} Qb8 23. Qa5 d5 24. exd5 Nxd5 25. Ncxd5 cxd5 26. Qb4) 22... Qxa5 {[%emt 0:04:36]} 23. Rxa5 {[%emt 0:00:02]} b4 {[%emt 0:00:01]} 24. Ne2 {[%emt 0:02:39]} Rb8 {[%emt 0:02:23]} (24... Ng4 $11) 25. Nd4 {[%emt 0:02:28]} g6 {[%emt 0:00:46]} 26. Ra6 {[%emt 0:01:11]} c5 {[%emt 0:00:28]} 27. Ne2 {[%emt 0:00:31]} Nxe4 {[%emt 0:03:46]} 28. dxe4 {[%emt 0:00:58]} Bb5 {[%emt 0:00:01][%csl LRa6,LRe2]} 29. Rxd6 {[%emt 0:00:21]} Bxe2 $11 {[%emt 0:00:01][%mdl 4096] Endgame KRB-KRN} 30. Rc6 {[%emt 0:06:11]} Ra8 {[%emt 0:00:29]} 31. f4 {[%emt 0:00:11]} Ra2 {[%emt 0:00:33]} 32. Rxc5 {[%emt 0:00:27]} Rxb2 {[%emt 0:00:06]} 33. Nd5 {[%emt 0:00:20]} (33. Rc8+ $11 Kg7 34. e5) 33... b3 {[%emt 0:02:30]} 34. Rc8+ {[%emt 0:04:01]} Kg7 {[%emt 0:00:11] ...Rd2 is the strong threat.} 35. Rb8 {[%emt 0:00:06]} Bc4 {[%emt 0:00:44] Strongly threatening ...Re2.} 36. Ne3 $2 {[%emt 0:00:01]} (36. Rb4 $17 {only move.}) 36... Be6 $2 {[%emt 0:00:28]} (36... Bd3 $19 {aiming for ...Re2.} 37. Rb4 Re2 38. Rxb3 Rxe3) 37. f5 $1 {[%emt 0:00:25]} gxf5 {[%emt 0:00:08]} 38. exf5 {[%emt 0:00:01]} Bd7 {[%emt 0:00:20]} 39. Kf1 {[%emt 0:02:26]} (39. Rb4 $11 {remains equal.}) 39... Ba4 $1 $17 {[%emt 0:01:03]} 40. Nd1 {[%emt 0:00:00]} (40. Rb4 $17) 40... Rb1 {[%emt 0:00:00]} ({Black should play} 40... Rd2 $19 41. f6+ Kh7) 41. Ke2 $11 {[%emt 0:10:17]} Bc6 {[%emt 0:06:52]} 42. g3 {[%emt 0:14:46]} Be4 {[%emt 0:04:14]} 43. Ne3 {[%emt 0:01:33]} (43. Rb5 $11) 43... Rb2+ $1 $17 {[%emt 0:12:14] Black keeps a firm grip on the game.} 44. Kd1 {[%emt 0:01:17]} Bf3+ {[%emt 0:01:16]} 45. Kc1 {[%emt 0:00:43]} Rxh2 {[%emt 0:00:09]} 46. Rxb3 {[%emt 0:00:20] [#]} Rh3 $1 {[%emt 0:02:02]} 47. Kd2 {[%emt 0:02:20]} (47. f6+ $17 {is a better defense.} Kxf6 48. Nc2) 47... Rxg3 $19 {[%emt 0:01:09]} 48. Ke1 {[%emt 0:00:15]} Be4 {[%emt 0:01:32]} 49. Kf2 $2 {[%emt 0:01:12]} (49. Ke2) 49... Rf3+ {[%emt 0:00:09]} 50. Kg1 {[%emt 0:00:04]} Kf6 {[%emt 0:00:58]} 51. Rb6+ {[%emt 0:00:29]} Kg5 {[%emt 0:00:17]} 52. Nf1 {[%emt 0:00:40]} (52. Nc4 {was the only defense.}) 52... Bxf5 {[%emt 0:00:38]} 53. Kg2 {[%emt 0:00:56]} Ra3 {[%emt 0:01:11]} 54. Ng3 {[%emt 0:00:12]} Ra2+ {[%emt 0:00:11]} 55. Kg1 {[%emt 0:00:30]} Bg4 {[%emt 0:00:36] And now ...f5 would win.} 56. Rb5+ {[%emt 0:02:35]} (56. Ne4+ Kf4 57. Rb4) 56... f5 {[%emt 0:00:19]} 57. Ne4+ {[%emt 0:00:10]} Kf4 {[%emt 0:02:46]} 58. Nf2 {[%emt 0:00:07]} Bf3 {[%emt 0:00:24] ( -> ...Kg3)} 59. Rb1 {[%emt 0:03:42]} (59. Rb3 $19) 59... Kg3 {[%emt 0:02:19]} 60. Nh1+ {[%emt 0:00:04]} Kf4 {[%emt 0:00:48]} 61. Nf2 $1 {[%emt 0:00:11]} Ra8 {[%emt 0:00:40]} (61... h4 $142 62. Re1 Kg3 63. Nh1+ Kf4 64. Nf2 Rc2 65. Rf1 Kg3 66. Nh1+ Bxh1 67. Kxh1 f4 68. Rg1+ Kh3 69. Rf1 Ra2 70. Rf3+ Kg4 71. Rb3 f3 72. Rb6 Ra1+ 73. Kh2 f2 74. Rg6+ Kh5 75. Rg8 Rb1 76. Rh8+ Kg6 77. Rg8+ Kf7 78. Rd8 f1=Q 79. Rf8+ Kg6 80. Rg8+ Kf6 81. Rf8+ Kg5 82. Rg8+ Kf4 83. Rf8+ Ke3 84. Re8+ Kd2 85. Rd8+ Ke1 86. Re8+ {[#]} Qe2+ $3 {[%mdl 512]} 87. Rxe2+ Kxe2 88. Kg2 Rb3 89. Kg1 Kf3 90. Kh1 Kg3 91. Kg1 Rb1#) 62. Kh2 {[%emt 0:00:46]} Ra2 {[%emt 0:00:13]} (62... Ke3 $142 63. Nd1+ Kf4 64. Rb4+ Be4) 63. Kg1 $1 {[%emt 0:01:46][%mdl 32768] Weighted Error Value: White=0.53/Black=0.30. An unexpected result.} 1/2-1/2

[Event "Croatian 1A League 2022"]
[Site "Porec"]
[Date "2022.09.30"]
[Round "7.1"]
[White "Kadric, Denis"]
[Black "Saric, Ivan"]
[Result "1/2-1/2"]
[ECO "B97"]
[WhiteElo "2561"]
[BlackElo "2668"]
[Annotator "TA"]
[PlyCount "39"]
[EventDate "2022.09.24"]
[EventType "team-tourn"]
[EventCountry "CRO"]
[SourceTitle "playchess.com"]
[Source "ChessBase"]
[SourceQuality "1"]
[TimeControl "40/5400+30:1800+30"]

{[%evp 35,39,0,0,0,0,0]} 1. e4 {[%emt 0:00:52]} c5 {[%emt 0:00:06]} 2. Nf3 {[%emt 0:00:09]} d6 {[%emt 0:00:10]} 3. d4 {[%emt 0:00:03]} cxd4 {[%emt 0:00:04]} 4. Nxd4 {[%emt 0:00:02]} Nf6 {[%emt 0:00:07]} 5. Nc3 {[%emt 0:00:02]} a6 {[%emt 0:00:12]} 6. Bg5 {[%emt 0:00:05]} e6 {[%emt 0:00:07]} 7. f4 {[%emt 0:00:05]} Qb6 {[%emt 0:00:42]} 8. Qd2 {[%emt 0:00:15]} Qxb2 {[%emt 0:00:29]} 9. Rb1 {[%emt 0:00:02]} Qa3 {[%emt 0:00:05]} 10. f5 {[%emt 0:00:42]} Nc6 {[%emt 0:00:28]} 11. fxe6 {[%emt 0:00:17]} fxe6 {[%emt 0:00:07]} 12. Nxc6 {[%emt 0:00:03]} bxc6 {[%emt 0:00:05]} 13. Be2 {[%emt 0:00:03]} Be7 {[%emt 0:00:31]} 14. O-O {[%emt 0:00:09]} O-O {[%emt 0:00:21]} 15. Rb3 {[%emt 0:01:10]} Qc5+ {[%emt 0:00:28]} 16. Be3 {[%emt 0:00:41]} Qe5 {[%emt 0:00:16] [#]} 17. Bf4 $146 {[%emt 0:00:06]} ({Predecessor:} 17. Bd4 Qa5 18. Bb6 Qe5 19. Bd4 Qa5 20. Bb6 Qe5 21. Bd4 {½-½ (21) Chigaev,M (2639)-Alekseenko,K (2710) Ufa 2021}) 17... Qc5+ {[%emt 0:00:05]} 18. Be3 {[%emt 0:00:02]} Qe5 {[%emt 0:00:08]} 19. Bf4 {[%emt 0:00:02] B97: Sicilian Najdorf: Poisoned Pawn.} Qc5+ {[%emt 0:00:12]} 20. Be3 {[%emt 0:00:01] An even fight not without its subleties.} 1/2-1/2